fUSD/lending_fUSD_20241209
["ID","MTS","AMOUNT","RATE_DAILY","PERIOD"]
[344759842,1733769811972,168.71,0.0001,2]
[344759844,1733769855330,23900.0,9.833e-05,2]
[344759846,1733769895255,300.0,9.833e-05,2]
[344759847,1733769903657,154.0,8.219e-05,30]
[344759848,1733769903991,154.0,9.715e-05,30]
[344759849,1733769904323,154.0,0.00011211,30]
[344759866,1733770035347,400.0,9.9e-05,3]
[344759867,1733770037518,800.0,0.0001,3]
[344759868,1733770072829,2777.7,9.782e-05,2]
[344759873,1733770115849,981.97,9.86e-05,2]
[344759876,1733770173578,1000.0,0.0002,120]
[344759878,1733770196074,800.0,9.9e-05,3]
[344759879,1733770198245,1600.0,0.0001,3]
[344759881,1733770203688,154.0,8.219e-05,30]
[344759882,1733770204043,154.0,0.00010123,30]
[344759883,1733770204359,154.0,0.00012027,30]
[344759884,1733770224492,1000.0,9.776e-05,2]
[344759888,1733770231731,-166.95,0.00010087,2]
[344759889,1733770231741,-1300.0,0.000101,3]
[344759890,1733770231751,-2400.0,0.000101,3]
[344759891,1733770231761,-1700.0,0.000102,3]
[344759892,1733770231771,-3200.0,0.000102,3]
[344759893,1733770231781,-2000.0,0.00010228,2]
[344759894,1733770231790,-2200.0,0.000103,3]
[344759895,1733770231799,-4100.0,0.000103,3]
[344759896,1733770231809,-177.23914725,0.00010368,2]
[344759897,1733770231818,-400.0,0.000104,3]
[344759898,1733770231829,-800.0,0.000104,3]
[344759899,1733770231838,-607.01,0.00010468,2]
[344759900,1733770231847,-400.0,0.000105,3]
[344759901,1733770231857,-800.0,0.000105,3]
[344759902,1733770231866,-150.0,0.00010575,2]
[344759903,1733770231876,-300.0,0.00010592,2]
[344759904,1733770231885,-2000.0,0.00010593,2]
[344759905,1733770231895,-150.0,0.00010599,2]
[344759906,1733770231908,-272.96,0.000106,2]
[344759907,1733770231918,-238.41,0.000106,2]
[344759908,1733770231928,-150.99,0.000106,2]
[344759909,1733770231939,-2216.01,0.000106,2]
[344759910,1733770231949,-950.11,0.000106,2]
[344759911,1733770231959,-1196.01,0.000106,2]
[344759912,1733770231969,-26164.38,0.000106,2]
[344759913,1733770231980,-400.0,0.000106,3]
[344759914,1733770231990,-800.0,0.000106,3]
[344759915,1733770232000,-177.23914724,0.00010684,2]
[344759916,1733770232010,-400.0,0.000107,3]
[344759917,1733770232020,-800.0,0.000107,3]
[344759918,1733770232030,-6936.4,0.00010775,2]
[344759919,1733770232039,-6936.4,0.00010778,2]
[344759921,1733770232049,-6936.4,0.00010781,2]
[344759923,1733770232058,-6936.4,0.00010783,2]
[344759924,1733770232067,-6936.4,0.00010786,2]
[344759925,1733770232078,-6936.4,0.00010789,2]
[344759926,1733770232091,-6936.4,0.00010792,2]
[344759927,1733770232101,-6936.4,0.00010795,2]
[344759929,1733770232110,-6936.4,0.00010798,2]
[344759931,1733770232119,-914.0,0.000108,3]
[344759933,1733770232129,-1131.0,0.000108,3]
[344759935,1733770232139,-6936.4,0.000108,2]
[344759937,1733770232149,-6936.4,0.00010803,2]
[344759939,1733770232158,-6936.4,0.00010806,2]
[344759940,1733770232168,-6936.4,0.00010809,2]
[344759941,1733770232178,-6936.4,0.00010812,2]
[344759942,1733770232188,-6936.4,0.00010814,2]
[344759943,1733770232198,-6936.4,0.00010817,2]
[344759944,1733770232208,-6936.4,0.0001082,2]
[344759945,1733770232217,-6936.4,0.00010823,2]
[344759946,1733770232227,-200.0,0.00010825,2]
[344759947,1733770232237,-6936.4,0.00010826,2]
[344759948,1733770232246,-6936.4,0.00010829,2]
[344759949,1733770232255,-2000.0,0.00010958,2]
[344759950,1733770232485,-1000.0,0.00010998,2]
[344759951,1733770232495,-25247.0,0.00011068,2]
[344759952,1733770232504,-12940.0,0.00011068,2]
[344759953,1733770232514,-166.52686438,0.00011073,2]
[344759954,1733770232523,-500.0,0.00011073,2]
[344759955,1733770232533,-154.53,0.00011077,2]
[344759956,1733770232543,-27924.55811482,0.00011088,2]
[344759957,1733770232552,-197.35068907,0.00011099,2]
[344759958,1733770232562,-1000.0,0.00011099,2]
[344759959,1733770232571,-993.02,0.00011099,2]
[344759960,1733770232583,-500.0,0.00011099,2]
[344759961,1733770232593,-500.0,0.00011099,2]
[344759962,1733770232603,-500.0,0.00011099,2]
[344759963,1733770232613,-500.0,0.00011099,2]
[344759964,1733770232623,-500.0,0.00011099,2]
[344759965,1733770232632,-500.0,0.00011099,2]
[344759966,1733770232642,-500.0,0.00011099,2]
[344759967,1733770232652,-332.68088558,0.00011099,2]
[344759968,1733770232661,-500.0,0.00011099,2]
[344759969,1733770232671,-500.0,0.00011099,2]
[344759970,1733770232681,-500.0,0.00011099,2]
[344759971,1733770232690,-500.0,0.00011099,2]
[344759972,1733770232700,-500.0,0.00011099,2]
[344759973,1733770232709,-500.0,0.00011099,2]
[344759974,1733770232719,-500.0,0.00011099,2]
[344759975,1733770232728,-500.0,0.00011099,2]
[344759976,1733770232738,-500.0,0.00011099,2]
[344759977,1733770232747,-500.0,0.00011099,2]
[344759978,1733770232757,-549.80713159,0.00011099,2]
[344759979,1733770232766,-500.0,0.00011099,2]
[344759980,1733770232776,-500.0,0.00011099,2]
[344759981,1733770232785,-381.42811417,0.00011099,2]
[344759982,1733770232794,-500.0,0.00011099,2]
[344759983,1733770232804,-500.0,0.00011099,2]
[344759984,1733770232814,-1260.86556751,0.00011099,3]
[344759985,1733770232824,-1142.43908507,0.00011099,3]
[344759986,1733770232835,-403411.17861453,0.000111,2]
[344759987,1733770232856,-99938.51962105,0.000111,2]
[344759988,1733770232868,-54752.95347026,0.000111,2]
[344759989,1733770236300,400.0,9.9e-05,3]
[344759990,1733770237092,1000.0,0.0002,120]
[344759996,1733770237724,-496.9644672,0.00011073,2]
[344759999,1733770237736,-3.0355328,0.00011073,2]
[344760001,1733770237746,-161.06813051,0.00011073,2]
[344760003,1733770237755,-6569.13105523,0.000111,2]
[344760005,1733770237767,-43448.29299986,0.000111,2]
[344760007,1733770237779,-8282.47027606,0.000111,2]
[344760009,1733770237790,-632.65422297,0.000111,2]
[344760022,1733770237922,-2416.1,0.000111,2]
[344760034,1733770238405,800.0,0.0001,3]
[344760035,1733770240075,-5280.17503285,0.000111,2]
[344760036,1733770240090,-2315.9462,0.000111,2]
[344760040,1733770242927,-1300.0,0.000101,3]
[344760041,1733770242939,-880.7869449,0.000102,3]
[344760054,1733770312599,-819.2130551,0.000102,3]
[344760055,1733770312609,-500.0,0.00011073,2]
[344760056,1733770312619,-500.0,0.00011073,2]
[344760057,1733770312629,-45361874.39003115,0.000111,2]
[344760058,1733770312968,-5174215.85917161,0.000111,2]
[344760059,1733770312988,-3003.89829003,0.000111,2]
[344760060,1733770313010,-4804.84285329,0.000111,2]
[344760061,1733770313272,-437.125035,0.000103,3]
[344760062,1733770313295,-1762.874965,0.000103,3]
[344760063,1733770313304,-8342.4067576,0.000111,2]
[344760064,1733770395096,723.33,8.572e-05,2]
[344760065,1733770504311,154.0,8.572e-05,30]
[344760066,1733770504658,154.0,0.00011146,30]
[344760078,1733770679369,250.0,9.956e-05,2]
[344760079,1733770727428,151.38,9.888e-05,2]
[344760080,1733770803511,154.0,8.572e-05,30]
[344760081,1733770803860,154.0,0.00012004,30]
[344760082,1733770814682,1500.0,9.869e-05,2]
[344760083,1733770870179,23900.0,9.862e-05,2]
[344760084,1733770888601,166.81,9.878e-05,2]
[344760088,1733771103672,154.0,8.572e-05,30]
[344760089,1733771162614,200.0,9.885e-05,2]
[344760090,1733771233971,1000.0,9.923e-05,2]
[344760091,1733771314185,300.0,9.781e-05,2]
[344760092,1733771320317,1203.02600649,0.0001,2]
[344760093,1733771338977,751.55,8.219e-05,2]
[344760122,1733771367604,2000.0,9.763e-05,2]
[344760124,1733771377641,150.0,9.778e-05,2]
[344760125,1733771403989,154.0,8.572e-05,30]
[344760133,1733771432001,-2000.0,0.00010034,2]
[344760134,1733771432011,-300.0,0.000101,3]
[344760135,1733771432021,-931.67,0.00010128,2]
[344760136,1733771432030,-300.0,0.00010133,2]
[344760137,1733771432039,-725.0,0.00010134,2]
[344760138,1733771432048,-722.0,0.00010134,2]
[344760139,1733771432058,-722.0,0.00010134,2]
[344760140,1733771432067,-722.0,0.00010134,2]
[344760141,1733771432077,-400.0,0.00010149,2]
[344760142,1733771432086,-167.82,0.00010174,2]
[344760143,1733771432095,-600.0,0.000102,3]
[344760144,1733771432104,-900.0,0.000103,3]
[344760145,1733771432113,-250.0,0.0001039,2]
[344760146,1733771432122,-150.0,0.00010399,2]
[344760147,1733771432131,-1974.3,0.000104,2]
[344760148,1733771432140,-150.99,0.000104,2]
[344760149,1733771432155,-221.2,0.000104,2]
[344760150,1733771432167,-2123.55,0.000104,2]
[344760151,1733771432176,-12106.92,0.000104,2]
[344760152,1733771432185,-299.99,0.000104,2]
[344760153,1733771432194,-150.99,0.000104,2]
[344760154,1733771432204,-1200.0,0.000104,3]
[344760155,1733771432213,-2000.0,0.00010405,2]
[344760156,1733771432222,-1130.55,0.00010438,2]
[344760157,1733771432233,-751.55,0.00010465,2]
[344760158,1733771432242,-1500.0,0.000105,3]
[344760159,1733771432251,-151.38,0.00010506,2]
[344760160,1733771432264,-300.0,0.000106,3]
[344760162,1733771432273,-660.0,0.00010663,2]
[344760164,1733771432283,-300.0,0.000107,3]
[344760166,1733771432292,-200.0,0.00010765,2]
[344760167,1733771432305,-2000.0,0.00010776,2]
[344760168,1733771432314,-300.0,0.000108,3]
[344760169,1733771432323,-300.0,0.000109,3]
[344760170,1733771432333,-150.0,0.00010959,2]
[344760171,1733771432343,-3000.0,0.0001099,2]
[344760172,1733771432351,-3000.0,0.0001099,2]
[344760173,1733771432361,-3000.0,0.0001099,2]
[344760174,1733771432370,-178.04389688,0.0001099,2]
[344760175,1733771432393,-500.25,0.0001099,2]
[344760176,1733771432418,-2321.70610312,0.0001099,2]
[344760177,1733771432427,-3000.0,0.0001099,2]
[344760178,1733771432436,-3000.0,0.0001099,2]
[344760179,1733771432446,-5000.0,0.00011,2]
[344760180,1733771432455,-206.99686305,0.00011,2]
[344760181,1733771432464,-500.0,0.00011073,2]
[344760182,1733771432474,-388.04570712,0.00011073,2]
[344760183,1733771432485,-499.0,0.00011073,2]
[344760185,1733771432495,-500.0,0.00011073,2]
[344760187,1733771432513,-500.0,0.00011073,2]
[344760189,1733771432534,-500.0,0.00011073,2]
[344760191,1733771432543,-201.97643831,0.00011073,2]
[344760193,1733771432553,-500.0,0.00011099,2]
[344760195,1733771432563,-1075.02639277,0.00011099,3]
[344760197,1733771432571,-1000.0,0.000111,2]
[344760199,1733771432581,-1000.0,0.000111,3]
[344760200,1733771432590,-1000.0,0.000111,4]
[344760203,1733771432600,-1000.0,0.000111,5]
[344760205,1733771432609,-8646.89700205,0.000111,2]
[344760209,1733771432644,-443.98,0.000111,2]
[344760211,1733771432655,-800.4859381,0.000111,2]
[344760214,1733771432666,-3838.0,0.000111,2]
[344760736,1733771437917,-280.21745732,0.00011073,2]
[344760738,1733771437926,-2256.68287515,0.000111,2]
[344760762,1733771438150,-29660.45913957,0.000111,2]
[344760764,1733771438161,-335.516142,0.000111,2]
[344760766,1733771438172,-39039.4525001,0.000111,2]
[344760768,1733771438183,-24163.7229139,0.000111,2]
[344760785,1733771438364,-2452.43064489,0.000111,2]
[344760786,1733771438375,-999.57036469,0.000111,2]
[344760787,1733771438386,-566.17429181,0.000111,2]
[344760788,1733771438398,-3820.5,0.000111,2]
[344760959,1733771439973,-76701.4413131,0.000111,2]
[344760961,1733771439985,-6513.71573967,0.000111,2]
[344760965,1733771440020,-7620.0,0.000111,2]
[344760980,1733771440156,-3634.40628234,0.000111,2]
[344761246,1733771443027,-500.0,0.00011073,2]
[344761249,1733771443037,-7488.90594671,0.000111,2]
[344761263,1733771443161,-716.44001999,0.000111,2]
[344761278,1733771443295,-10102.0,0.000111,2]
[344761280,1733771443310,-2442.2370964,0.000111,2]
[344761282,1733771443322,-400.0,0.000111,2]
[344761295,1733771443432,-4540.0,0.000111,2]
[344761297,1733771443443,-748.37174501,0.000111,2]
[344761580,1733771446078,-377.077714,0.00011,2]
[344761581,1733771446090,-4622.922286,0.00011,2]
[344761582,1733771446100,-26807.57195497,0.000111,2]
[344761583,1733771446111,-1589319.44203442,0.000111,2]
[344761591,1733771446207,-5324.64452752,0.000111,2]
[344761593,1733771446218,-361.93774272,0.000111,2]
[344761595,1733771446229,-5773.08,0.000111,2]
[344761597,1733771446240,-3234.894002,0.000111,2]
[344761600,1733771446254,-3089.23824361,0.000111,2]
[344761603,1733771446276,-4058.68217684,0.000111,2]
[344764012,1733771703523,154.0,0.000111,30]
[344764013,1733771894909,23900.0,0.00010004,2]
[344764018,1733772004281,154.0,0.000111,30]
[344764019,1733772146176,1000.0,9.954e-05,2]
[344764026,1733772213834,676.39,8.219e-05,2]
[344764027,1733772301864,12830.94,9.97e-05,2]
[344764028,1733772304565,154.7262899,0.000111,30]
[344764029,1733772308560,805080.33985213,0.0001,2]
[344764030,1733772308593,2000000.0,0.0001,2]
[344764031,1733772308621,501054.6144422,0.0001,2]
[344764040,1733772528028,1475.38,9.726e-05,2]
[344764041,1733772535283,150.0,9.726e-05,2]
[344764049,1733772552479,250.0,9.689e-05,2]
[344764050,1733772592947,151.38,9.71e-05,2]
[344764051,1733772612714,5100.0,0.00012,20]
[344764052,1733772622468,5100.0,0.00012,21]
[344764073,1733772632541,-400.0,0.000101,3]
[344764074,1733772632551,-2000.0,0.00010115,2]
[344764075,1733772632561,-156.22,0.00010124,2]
[344764077,1733772632570,-320.0,0.00010185,2]
[344764079,1733772632580,-900.0,0.000102,3]
[344764081,1733772632589,-250.0,0.00010221,2]
[344764083,1733772632598,-3.48223122,0.00010225,2]
[344764088,1733772632642,-296.51776878,0.00010225,2]
[344764090,1733772632651,-150.0,0.00010225,2]
[344764092,1733772632663,-555.88223122,0.00010226,2]
[344764095,1733772632675,-1883.77918882,0.00010226,2]
[344764097,1733772632687,-1342.33857996,0.00010226,2]
[344764099,1733772632697,-3780.0,0.00010226,2]
[344764101,1733772632709,-3780.0,0.00010226,2]
[344764103,1733772632718,-1127.66142004,0.00010226,2]
[344764105,1733772632730,-728.21096132,0.00010226,2]
[344764107,1733772632742,-1151.80902,0.00010226,2]
[344764116,1733772632820,-587.66878533,0.00010226,2]
[344764123,1733772632881,-184.64981331,0.00010226,2]
[344764125,1733772632891,-815.29818669,0.00010226,2]
[344764613,1733772638026,-2964.70181331,0.00010226,2]
[344764615,1733772638036,-245.49868669,0.00010226,2]
[344764630,1733772638176,-1744.81416,0.00010226,2]
[344764637,1733772638232,-1789.68715331,0.00010226,2]
[344764639,1733772638242,-5290.9,0.00010241,2]
[344764641,1733772638252,-167.25,0.00010267,2]
[344764643,1733772638261,-1300.0,0.000103,3]
[344764645,1733772638271,-9999.99,0.000104,2]
[344764647,1733772638281,-1800.0,0.000104,3]
[344764649,1733772638290,-676.39,0.00010473,2]
[344764651,1733772638299,-2000.0,0.00010489,2]
[344764653,1733772638308,-2300.0,0.000105,3]
[344764655,1733772638318,-151.38,0.00010519,2]
[344764657,1733772638327,-400.0,0.000106,3]
[344764659,1733772638336,-400.0,0.000107,3]
[344764661,1733772638346,-1663.0,0.000107,5]
[344764663,1733772638355,-200.0,0.00010732,2]
[344764665,1733772638364,-400.0,0.000108,3]
[344764667,1733772638374,-310.3214,0.000108,2]
[344764668,1733772638384,-500.0,0.00010822,2]
[344764669,1733772638393,-2000.0,0.00010863,2]
[344764670,1733772638403,-2500.0,0.00010874,2]
[344764671,1733772638412,-1863.5813,0.000109,2]
[344764672,1733772638421,-10003.9272,0.000109,2]
[344764673,1733772638430,-46489.23735623,0.000109,2]
[344764674,1733772638442,-1190.24676369,0.000109,2]
[344764675,1733772638454,-4260.0,0.000109,2]
[344764852,1733772640177,-913.69006756,0.000109,2]
[344764854,1733772640188,-7820.24788031,0.000109,2]
[344764856,1733772640200,-403.50000018,0.000109,2]
[344764864,1733772640263,-19210.21161903,0.000109,2]
[344764875,1733772640363,-30393.666,0.000109,2]
[344764877,1733772640374,-22468.998813,0.000109,2]
[344764879,1733772640383,-400.0,0.000109,3]
[344764881,1733772640394,-795.83150126,0.000109,2]
[344764883,1733772640405,-784.91271127,0.000109,2]
[344764941,1733772643690,-599.02118747,0.000109,2]
[344764942,1733772643700,-1907.69526177,0.0001099,2]
[344764943,1733772643714,-1092.30473823,0.0001099,2]
[344764944,1733772643724,-785.7570054,0.00010999,2]
[344764945,1733772643733,-359.55998668,0.00011,3]
[344764946,1733772643872,-296.21242944,0.00011,3]
[344764947,1733772643884,-267.67999988,0.00011,3]
[344764948,1733772644049,-4807.00006,0.00011,3]
[344764949,1733772644061,-860.0,0.00011,3]
[344764950,1733772644109,-8151.88219889,0.00011,3]
[344765014,1733772646121,-1355.5419,0.00011,3]
[344765015,1733772646371,-4884.1,0.00011,3]
[344765016,1733772646383,-3832.79999991,0.00011,3]
[344765040,1733773270288,10506.73964999,0.0001216,15]
[344765041,1733773334751,275916.93089333,0.0001,3]
[344765053,1733773408117,672.16,8.255e-05,2]
[344765055,1733773479059,11707.61789782,0.000155,60]
[344765056,1733773479083,38292.38210218,0.000155,60]
[344765059,1733773491072,150.0,9.984e-05,2]
[344765070,1733773544467,250.0,9.974e-05,2]
[344765072,1733773555069,156.22,9.948e-05,2]
[344765073,1733773569723,250.0,9.948e-05,2]
[344765074,1733773586449,2348.866,9.944e-05,2]
[344765075,1733773709337,18808.0,9.941e-05,2]
[344765081,1733773832347,-1971.95,0.00010008,2]
[344765082,1733773832358,-737.69,0.00010044,2]
[344765083,1733773832371,-229.89346099,0.00010151,2]
[344765084,1733773832484,-770.10653901,0.00010151,2]
[344765085,1733773832495,-744.0,0.00010225,2]
[344765086,1733773832506,-500.0,0.00010274,2]
[344765087,1733773832517,-1805.29346099,0.00010378,2]
[344765088,1733773832529,-166.65653901,0.00010378,2]
[344765089,1733773832542,-672.16,0.00010519,2]
[344765090,1733773832552,-150.0,0.00010521,2]
[344765091,1733773832562,-166.63,0.00010528,2]
[344765092,1733773832573,-1971.95,0.00010748,2]
[344765093,1733773832583,-803.408,0.0001078,2]
[344765094,1733773832596,-929.6534,0.00010806,2]
[344765095,1733773832608,-2911.97179484,0.0001087,2]
[344765096,1733773832621,-500.0,0.00010873,2]
[344765097,1733773832630,-150.0,0.00010879,2]
[344765098,1733773832640,-226.12503891,0.00010879,2]
[344765099,1733773832651,-375.71423491,0.00010879,2]
[344765100,1733773832660,-283.31190351,0.00010879,2]
[344765101,1733773832670,-592.5200984,0.00010879,2]
[344765102,1733773832681,-20000.0,0.0001088,2]
[344765103,1733773832692,-118493.32272022,0.0001088,2]
[344765104,1733773832706,-7986.84134332,0.0001088,2]
[344765105,1733773832721,-4580.00539533,0.0001088,2]
[344765106,1733773832734,-3574.85708469,0.0001088,2]
[344765107,1733773832747,-1197.32079054,0.0001088,2]
[344765108,1733773832759,-3742.16071913,0.0001088,2]
[344765109,1733773832772,-9587.02033811,0.0001088,2]
[344765110,1733773832803,-389.87846575,0.0001088,2]
[344765111,1733773832816,-5483.58920946,0.0001088,2]
[344765181,1733773836716,-1187.93,0.00016658,30]
[344765190,1733773836796,-1187.93,0.00019242,30]
[344765198,1733773836867,-2000.0,0.0002,30]
[344765206,1733773836931,-124838.649999,0.0002,30]
[344765214,1733773837001,-5765.26319681,0.0002,30]
[344765223,1733773837075,-4039.96520373,0.00021,60]
[344765231,1733773837148,-554.87983549,0.000215,90]
[344765239,1733773837216,-1187.93,0.00021826,30]
[344765243,1733773837295,-2400.0,0.00022,30]
[344765244,1733773837364,-3250.0,0.000229,120]
[344765245,1733773837434,-2500.0,0.00023,30]
[344765246,1733773837525,-1187.93,0.0002441,30]
[344765247,1733773837607,-1000.0,0.00024657,89]
[344765248,1733773837670,-1000.0,0.00024657,89]
[344765249,1733773837740,-1000.0,0.00024657,89]
[344765250,1733773837806,-1000.0,0.00024657,89]
[344765251,1733773837875,-182.58980115,0.00024657,89]
[344765252,1733773837945,-1023.04839159,0.00025,60]
[344765253,1733773838016,-2372.04361974,0.00025,30]
[344765255,1733773838086,-1487.23752626,0.00025,60]
[344765256,1733773838156,-673.49184114,0.00025,30]
[344765257,1733773838227,-1000.0,0.00025,30]
[344765258,1733773838300,-1000.0,0.00025,30]
[344765259,1733773838370,-1000.0,0.00025,60]
[344765260,1733773838441,-1000.0,0.00025,60]
[344765261,1733773838514,-3672.0,0.00025,120]
[344765269,1733773839073,-150.903432,0.0002646,30]
[344765270,1733773839170,-784.60105,0.000266,30]
[344765271,1733773839258,-1187.93,0.00026994,30]
[344765272,1733773839325,-500.0,0.00027,30]
[344765273,1733773839396,-500.0,0.00027,30]
[344765274,1733773839463,-500.0,0.00027,30]
[344765275,1733773839527,-928.80608694,0.00027,30]
[344765276,1733773839598,-500.0,0.00027,30]
[344765277,1733773839661,-500.0,0.00027,30]
[344765278,1733773839728,-500.0,0.00027,30]
[344765279,1733773839793,-500.0,0.00027,30]
[344765280,1733773839867,-500.0,0.00027,30]
[344765281,1733773839938,-500.0,0.00027,30]
[344765282,1733773840009,-500.0,0.00027,30]
[344765283,1733773840082,-500.0,0.00027,30]
[344765284,1733773840151,-500.0,0.00027,30]
[344765285,1733773840230,-207.86137997,0.00027,30]
[344765286,1733773840314,-159.06896745,0.00027,30]
[344765287,1733773840386,-500.0,0.00027,30]
[344765290,1733773840453,-500.0,0.00027,30]
[344765291,1733773840518,-500.0,0.00027,30]
[344765292,1733773840584,-810.0,0.00027,30]
[344765293,1733773840651,-500.0,0.00027,30]
[344765294,1733773840715,-500.0,0.00027,30]
[344765295,1733773840776,-500.0,0.00027,30]
[344765296,1733773840841,-985.30517558,0.00027,30]
[344765297,1733773840905,-500.0,0.00027,30]
[344765298,1733773840964,-657.16553688,0.00027,30]
[344765299,1733773841030,-500.0,0.00027,30]
[344765300,1733773841093,-500.0,0.00027,30]
[344765301,1733773841154,-500.0,0.00027,30]
[344765302,1733773841216,-500.0,0.00027,30]
[344765303,1733773841275,-500.0,0.00027,30]
[344765304,1733773841338,-500.0,0.00027,30]
[344765305,1733773841403,-500.0,0.00027,30]
[344765306,1733773841459,-500.0,0.00027,30]
[344765307,1733773841520,-187.20805384,0.00027,30]
[344765308,1733773841581,-500.0,0.00027,30]
[344765309,1733773841637,-953.82500204,0.00027,30]
[344765310,1733773841699,-500.0,0.00027,30]
[344765311,1733773841757,-500.0,0.00027,30]
[344765312,1733773841821,-500.0,0.00027,30]
[344765313,1733773841897,-500.0,0.00027,30]
[344765314,1733773841959,-500.0,0.00027,30]
[344765315,1733773842025,-500.0,0.00027,30]
[344765316,1733773842085,-500.0,0.00027,30]
[344765317,1733773842148,-500.0,0.00027,30]
[344765318,1733773842209,-500.0,0.00027,30]
[344765319,1733773842268,-500.0,0.00027,30]
[344765320,1733773842328,-500.0,0.00027,30]
[344765321,1733773842385,-500.0,0.00027,30]
[344765322,1733773842445,-500.0,0.00027,30]
[344765323,1733773842502,-500.0,0.00027,30]
[344765324,1733773842563,-500.0,0.00027,30]
[344765325,1733773842618,-500.0,0.00027,30]
[344765326,1733773842679,-500.0,0.00027,30]
[344765327,1733773842734,-159.29646985,0.00027,30]
[344765328,1733773842796,-156.73740761,0.00027,30]
[344765329,1733773842866,-500.0,0.00027,30]
[344765330,1733773842931,-500.0,0.00027,30]
[344765331,1733773842991,-500.0,0.00027,30]
[344765332,1733773843056,-500.0,0.00027,30]
[344765335,1733773843122,-500.0,0.00027,30]
[344765344,1733773843197,-706.5710406,0.00027,30]
[344765345,1733773843259,-500.0,0.00027,30]
[344765346,1733773843319,-500.0,0.00027,30]
[344765347,1733773843381,-500.0,0.00027,30]
[344765348,1733773843441,-500.0,0.00027,30]
[344765349,1733773843505,-500.0,0.00027,30]
[344765350,1733773843564,-500.0,0.00027,30]
[344765351,1733773843627,-500.0,0.00027,30]
[344765352,1733773843687,-500.0,0.00027,30]
[344765353,1733773843748,-500.0,0.00027,30]
[344765354,1733773843812,-500.0,0.00027,30]
[344765355,1733773843873,-500.0,0.00027,30]
[344765356,1733773843935,-273.81232503,0.00027,30]
[344765357,1733773843993,-500.0,0.00027,30]
[344765358,1733773844057,-500.0,0.00027,30]
[344765359,1733773844118,-500.0,0.00027,30]
[344765360,1733773844184,-500.0,0.00027,30]
[344765361,1733773844255,-500.0,0.00027,30]
[344765362,1733773844311,-969.01551873,0.00027,30]
[344765363,1733773844374,-500.0,0.00027,30]
[344765364,1733773844435,-500.7,0.00027,30]
[344765365,1733773844492,-500.0,0.00027,30]
[344765366,1733773844553,-500.0,0.00027,30]
[344765367,1733773844615,-500.0,0.00027,30]
[344765368,1733773844676,-162.8325884,0.00027,30]
[344765369,1733773844737,-297.19012242,0.00027,30]
[344765370,1733773845007,-500.0,0.00027,30]
[344765371,1733773845073,-500.0,0.00027,30]
[344765372,1733773845139,-500.0,0.00027,30]
[344765373,1733773845201,-500.0,0.00027,30]
[344765376,1733773845265,-997.20964168,0.00027,30]
[344765378,1733773845331,-500.0,0.00027,30]
[344765379,1733773845398,-500.0,0.00027,30]
[344765380,1733773845463,-159.97143866,0.00027,30]
[344765381,1733773845534,-500.47137461,0.00027,30]
[344765382,1733773845602,-500.0,0.00027,30]